bitfinex-derivatives/quotes_BTCF0:USTF0_20241023
["timestamp","ask_amount","ask_price","bid_price","bid_amount"]
[1729680605355,0.17,66510.0,66497.0,0.0600644]
[1729680605650,0.075227,66503.0,66502.0,0.075225]
[1729680605845,0.075227,66503.0,66502.0,0.12028208]
[1729680606754,0.245227,66503.0,66502.0,0.12028208]
[1729680608354,0.245227,66503.0,66502.0,0.1477984]
[1729680609146,0.245227,66503.0,66502.0,0.10274132]
[1729680609447,0.245227,66503.0,66502.0,0.14780205]
[1729680609646,0.245227,66503.0,66502.0,0.02751632]
[1729680609850,0.245227,66503.0,66499.0,0.1352934]
[1729680610053,0.245229,66500.0,66499.0,0.1352934]
[1729680610258,0.245229,66500.0,66499.0,0.075229]
[1729680610640,0.29240294,66500.0,66499.0,0.075229]
[1729680610845,0.33303346,66500.0,66499.0,0.075229]
[1729680612752,0.33303346,66500.0,66499.0,0.10246346]
[1729680614945,0.38670274,66500.0,66499.0,0.10246346]
[1729680615254,0.21670274,66500.0,66499.0,0.10246346]
[1729680615457,0.21670528,66500.0,66499.0,0.27246346]
[1729680615759,0.11585952,66500.0,66499.0,0.27246346]
[1729680615968,0.15006704,66510.0,66509.0,0.075219]
[1729680616261,0.1228476,66510.0,66509.0,0.075219]
[1729680616945,0.17705888,66510.0,66509.0,0.075219]
[1729680617255,0.1228476,66510.0,66509.0,0.075219]
[1729680617748,0.075218,66510.0,66509.0,0.28346745]
[1729680619155,0.075218,66510.0,66509.0,0.31075893]
[1729680619945,0.075212,66515.0,66509.0,0.19755471]
[1729680620161,0.075212,66515.0,66514.0,0.075213]
[1729680620358,0.245212,66515.0,66514.0,0.17025723]
[1729680621162,0.245212,66515.0,66514.0,0.17004116]
[1729680622360,0.245212,66515.0,66514.0,0.24509127]
[1729680623250,0.245212,66515.0,66514.0,0.2726212]
[1729680624361,0.245212,66515.0,66514.0,0.17779304]
[1729680625252,0.245212,66515.0,66514.0,0.10274293]
[1729680625958,0.245212,66515.0,66504.0,0.245984]
[1729680625959,0.075218,66510.0,66509.0,0.075214]
[1729680626162,0.22490295,66510.0,66509.0,0.075214]
[1729680626360,0.3266841,66510.0,66509.0,0.075214]
[1729680626549,0.36767282,66510.0,66509.0,0.075214]
[1729680627265,0.31245432,66510.0,66509.0,0.1019192]
[1729680627464,0.36459091,66510.0,66509.0,0.1019192]
[1729680628147,0.28937291,66510.0,66509.0,0.1019192]
[1729680628353,0.04010403,66510.0,66509.0,0.2719192]
[1729680628654,0.075215,66512.0,66511.0,0.075215]
[1729680628855,0.11543705,66512.0,66511.0,0.075215]
[1729680631357,0.16218711,66512.0,66511.0,0.075215]
[1729680632057,0.16222859,66512.0,66511.0,0.075215]
[1729680632854,0.075215,66512.0,66511.0,0.075215]
[1729680633963,0.075215,66512.0,66511.0,0.15026511]
[1729680635158,0.075215,66512.0,66511.0,0.24558842]
[1729680636966,0.075215,66512.0,66511.0,0.15026511]
[1729680637470,0.075215,66512.0,66511.0,0.075215]
[1729680637774,0.075215,66512.0,66511.0,0.24567051]
[1729680637960,0.075215,66512.0,66511.0,0.075215]
[1729680638258,0.075215,66512.0,66511.0,0.15026511]
[1729680638461,0.075215,66512.0,66511.0,0.075215]
[1729680639374,0.075215,66512.0,66511.0,0.24568562]
[1729680639969,0.075215,66512.0,66511.0,0.15026511]
[1729680640162,0.075215,66512.0,66511.0,0.24569448]
[1729680640863,0.11554916,66512.0,66511.0,0.075215]
[1729680641071,0.16237901,66512.0,66511.0,0.075215]
[1729680641377,0.16248914,66512.0,66511.0,0.075215]
[1729680646159,0.21601867,66512.0,66511.0,0.075215]
[1729680646772,0.16257053,66512.0,66511.0,0.075215]
[1729680647076,0.21591086,66512.0,66511.0,0.075215]
[1729680647761,0.075215,66512.0,66511.0,0.28509189]
[1729680648770,0.075215,66512.0,66511.0,0.28509358]
[1729680649064,0.075215,66512.0,66511.0,0.38981975]
[1729680649767,0.075215,66512.0,66511.0,0.28509358]
[1729680650277,0.075215,66512.0,66511.0,0.39509358]
[1729680651666,0.11,66517.0,66511.0,0.52752199]
[1729680651868,0.075214,66515.0,66514.0,0.075211]
[1729680652074,0.075214,66515.0,66514.0,0.28508958]
[1729680654970,0.185214,66515.0,66514.0,0.1709602]
[1729680655882,0.27330659,66515.0,66514.0,0.075211]
[1729680658384,0.27354631,66515.0,66514.0,0.075211]
[1729680659770,0.32758707,66515.0,66514.0,0.075211]
[1729680661581,0.075218,66512.0,66511.0,0.075215]
[1729680661781,0.28144909,66512.0,66511.0,0.075215]
[1729680662276,0.38294738,66512.0,66511.0,0.075215]
[1729680662479,0.49294738,66512.0,66511.0,0.075215]
[1729680662880,0.185218,66512.0,66511.0,0.41606705]
[1729680663273,0.075218,66512.0,66511.0,0.41606705]
[1729680663581,0.075218,66512.0,66511.0,0.41603812]
[1729680665578,0.075218,66512.0,66511.0,0.28413425]
[1729680666879,0.075218,66512.0,66511.0,0.38949014]
[1729680667281,0.075218,66512.0,66511.0,0.28413425]
[1729680668286,0.075218,66512.0,66511.0,0.28402872]
[1729680670883,0.075218,66512.0,66509.0,0.0267052]
[1729680670884,0.075218,66510.0,66509.0,0.0267052]
[1729680671070,0.185218,66512.0,66499.0,0.09030833]
[1729680671071,0.1409,66511.0,66499.0,0.09030833]
[1729680671271,0.075229,66500.0,66499.0,0.075228]
[1729680671471,0.075229,66500.0,66499.0,0.28084216]
[1729680672775,0.075229,66500.0,66499.0,0.17084216]
[1729680673184,0.075229,66500.0,66499.0,0.075228]
[1729680673580,0.075229,66500.0,66498.0,0.02741062]
[1729680673781,0.075229,66500.0,66493.0,0.11]
[1729680673782,0.18523,66499.0,66493.0,0.11]
[1729680674089,0.18523,66499.0,66498.0,0.075231]
[1729680675582,0.18523,66499.0,66493.0,0.20030833]
[1729680675777,0.075234,66496.0,66495.0,0.075234]
[1729680678187,0.185234,66496.0,66495.0,0.075234]
[1729680678685,0.185234,66496.0,66492.0,0.18403179]
[1729680678686,0.075237,66493.0,66492.0,0.07403179]
[1729680678983,0.075237,66493.0,66492.0,0.14926979]
[1729680681181,0.185237,66493.0,66492.0,0.14926979]
[1729680682092,0.185237,66493.0,66492.0,0.07403179]
[1729680682276,0.185237,66493.0,66492.0,0.02723179]
[1729680682478,0.185237,66493.0,66489.0,0.075241]
[1729680682684,0.18524,66490.0,66489.0,0.075241]
[1729680683093,0.18524,66490.0,66483.0,0.0445]
[1729680683094,0.075247,66487.0,66483.0,0.0445]
[1729680683291,0.185247,66484.0,66483.0,0.07114412]
[1729680683490,0.185247,66484.0,66476.0,0.0002]
[1729680683491,0.075255,66477.0,66476.0,0.0002]
[1729680683793,0.185255,66477.0,66476.0,0.0002]
[1729680684585,0.185255,66477.0,66476.0,0.02703657]
[1729680684783,0.185255,66477.0,66476.0,0.0002]
[1729680684994,0.185255,66477.0,66476.0,0.075456]
[1729680685192,0.075255,66477.0,66476.0,0.075456]
[1729680687482,0.075255,66477.0,66476.0,0.10280485]
[1729680687887,0.075251,66483.0,66482.0,0.075249]
[1729680688089,0.11,66489.0,66485.0,0.075243]
[1729680688090,0.075247,66486.0,66485.0,0.075243]
[1729680688279,0.075247,66486.0,66485.0,0.185243]
[1729680688884,0.075247,66486.0,66485.0,0.075243]
[1729680689193,0.185247,66486.0,66485.0,0.075243]
[1729680690799,0.185247,66486.0,66485.0,0.10185637]
[1729680691591,0.185247,66486.0,66483.0,0.11090471]
[1729680691783,0.185247,66484.0,66483.0,0.051]
[1729680691977,0.185247,66484.0,66483.0,0.07855398]
[1729680692589,0.185247,66484.0,66483.0,0.21368902]
[1729680692793,0.185247,66484.0,66483.0,0.15380198]
[1729680693093,0.075249,66482.0,66481.0,0.05988699]
[1729680693287,0.11,66484.0,66479.0,0.13513899]
[1729680693288,0.075251,66480.0,66479.0,0.13513899]
[1729680693592,0.075251,66480.0,66479.0,0.075252]
[1729680693984,0.075251,66480.0,66479.0,0.185252]
[1729680694184,0.075251,66480.0,66479.0,0.21281953]
[1729680695379,0.075251,66480.0,66479.0,0.30847868]
[1729680695590,0.075251,66480.0,66479.0,0.21281953]
[1729680696591,0.075251,66480.0,66479.0,0.30854077]
[1729680696782,0.075251,66480.0,66479.0,0.21281953]
[1729680697291,0.075251,66480.0,66479.0,0.30853692]
[1729680700991,0.075251,66480.0,66479.0,0.21281953]
[1729680705598,0.075238,66492.0,66479.0,0.13756753]
[1729680705899,0.075247,66487.0,66486.0,0.185242]
[1729680707493,0.075247,66487.0,66486.0,0.075242]
[1729680707893,0.11499663,66487.0,66486.0,0.075242]
[1729680711302,0.11499663,66487.0,66486.0,0.10271524]
[1729680712603,0.11499663,66487.0,66486.0,0.02747324]
[1729680712796,0.16116208,66487.0,66483.0,0.075247]
[1729680713002,0.185247,66484.0,66483.0,0.075247]
[1729680713191,0.22499663,66484.0,66483.0,0.075247]
[1729680714904,0.11499863,66482.0,66481.0,0.07525]
[1729680715099,0.075255,66479.0,66478.0,0.075253]
[1729680715402,0.075255,66479.0,66476.0,0.0002]
[1729680715403,0.075255,66477.0,66476.0,0.0002]
[1729680715605,0.22500463,66477.0,66476.0,0.02778385]
[1729680716103,0.185255,66477.0,66476.0,0.31416712]
[1729680717005,0.185255,66477.0,66476.0,0.31412372]
[1729680717506,0.075255,66477.0,66476.0,0.31412372]
[1729680719497,0.075255,66477.0,66476.0,0.10303985]
[1729680720112,0.075255,66477.0,66476.0,0.21781075]
[1729680720413,0.075255,66477.0,66476.0,0.42409815]
[1729680722216,0.075255,66477.0,66476.0,0.19932725]
[1729680722506,0.075255,66477.0,66476.0,0.30932725]
[1729680722708,0.075255,66477.0,66476.0,0.21303985]
[1729680725199,0.052,66485.0,66476.0,0.21303985]
[1729680725404,0.185253,66480.0,66479.0,0.075249]
[1729680726802,0.075253,66480.0,66479.0,0.28625247]
[1729680727408,0.075253,66480.0,66479.0,0.39625247]
[1729680728200,0.18525,66483.0,66482.0,0.075249]
[1729680728406,0.07525,66483.0,66482.0,0.185249]
[1729680728606,0.075244,66490.0,66489.0,0.075241]
[1729680729017,0.185244,66490.0,66489.0,0.075241]
[1729680730713,0.075246,66487.0,66486.0,0.075244]
[1729680730919,0.185246,66487.0,66486.0,0.075244]
[1729680731815,0.22519047,66487.0,66486.0,0.075244]
[1729680734420,0.22519047,66487.0,66484.0,0.02400006]
[1729680734421,0.075246,66485.0,66484.0,0.02400006]
[1729680734619,0.03994447,66485.0,66483.0,0.075247]
[1729680734811,0.22519147,66484.0,66483.0,0.075247]
[1729680736320,0.27151265,66484.0,66483.0,0.075247]
[1729680738331,0.185247,66484.0,66483.0,0.28558509]
[1729680741515,0.185247,66484.0,66483.0,0.31028201]
[1729680745429,0.185247,66484.0,66483.0,0.31024746]
[1729680746325,0.32456006,66484.0,66483.0,0.09994392]
[1729680750036,0.27168108,66484.0,66483.0,0.09994392]
[1729680753336,0.27168108,66484.0,66483.0,0.31020839]
[1729680753337,0.185247,66484.0,66483.0,0.31020839]
[1729680759741,0.185247,66484.0,66483.0,0.31063936]
[1729680760146,0.185247,66484.0,66483.0,0.31063881]
[1729680761348,0.32398135,66484.0,66483.0,0.09994392]
[1729680764651,0.32441146,66484.0,66483.0,0.09994392]
[1729680768345,0.32441146,66484.0,66483.0,0.31042349]
[1729680768346,0.185247,66484.0,66483.0,0.31042349]
[1729680776451,0.185247,66484.0,66483.0,0.19595906]
[1729680777950,0.075247,66484.0,66483.0,0.19595906]
[1729680778763,0.075247,66484.0,66483.0,0.19583384]
[1729680779553,0.075247,66484.0,66483.0,0.27110336]
[1729680779864,0.075247,66484.0,66483.0,0.27110261]
[1729680780065,0.075247,66484.0,66483.0,0.17521269]
[1729680780254,0.075247,66484.0,66483.0,0.02469692]
[1729680780454,0.11,66487.0,66482.0,0.07526877]
[1729680780754,0.075243,66488.0,66482.0,0.15051677]
[1729680780755,0.185248,66483.0,66482.0,0.15051677]
[1729680780964,0.185248,66483.0,66482.0,0.17517241]
[1729680783563,0.22509511,66483.0,66482.0,0.09990364]
[1729680784560,0.2713629,66483.0,66482.0,0.09990364]
[1729680787155,0.185248,66483.0,66482.0,0.09990364]
[1729680787356,0.27147543,66483.0,66482.0,0.09990364]
[1729680791353,0.185248,66483.0,66482.0,0.3105183]
[1729680796457,0.185248,66483.0,66482.0,0.31048595]
[1729680797664,0.185248,66483.0,66482.0,0.09990364]
[1729680800567,0.075255,66480.0,66476.0,0.0002]
[1729680800761,0.11,66477.0,66476.0,0.0002]
[1729680801584,0.185255,66477.0,66476.0,0.075455]
[1729680802869,0.185255,66477.0,66476.0,0.09989112]
[1729680803069,0.295255,66477.0,66476.0,0.0002]
[1729680803269,0.33488922,66477.0,66476.0,0.0002]
[1729680803575,0.33488922,66477.0,66464.0,0.124769]
[1729680803576,0.075268,66465.0,66464.0,0.124769]
[1729680804880,0.075268,66465.0,66464.0,0.0495]
[1729680805267,0.075268,66465.0,66464.0,0.12477]
[1729680806374,0.03007617,66465.0,66464.0,0.33619571]
[1729680806570,0.075268,66465.0,66464.0,0.33619571]
[1729680810285,0.075268,66465.0,66464.0,0.1865626]
[1729680810491,0.185268,66465.0,66464.0,0.09600198]
[1729680810784,0.185268,66465.0,66463.0,0.02529086]
[1729680810785,0.07527,66464.0,66463.0,0.10038699]
[1729680810979,0.18527,66464.0,66463.0,0.196675]
[1729680811280,0.18527,66464.0,66463.0,0.02529086]
[1729680811484,0.29527,66464.0,66463.0,0.0002]
[1729680812676,0.18527,66464.0,66463.0,0.0002]
[1729680812985,0.29527,66464.0,66463.0,0.0002]
[1729680813184,0.18527,66464.0,66463.0,0.0002]
[1729680820691,0.18527,66464.0,66463.0,0.06019944]
[1729680820692,0.29527,66464.0,66463.0,0.06019944]
[1729680820886,0.29527,66464.0,66463.0,0.0002]
[1729680825186,0.18527,66464.0,66463.0,0.0002]
[1729680825583,0.29527,66464.0,66463.0,0.0002]
[1729680828799,0.29527,66464.0,66463.0,0.17154538]
[1729680828987,0.18527,66464.0,66463.0,0.07529613]
[1729680829293,0.29527,66464.0,66463.0,0.17163662]
[1729680829505,0.29527,66464.0,66463.0,0.09654049]
[1729680829805,0.29527,66464.0,66463.0,0.17163424]
[1729680830105,0.29527,66464.0,66463.0,0.09654049]
[1729680830685,0.29527,66464.0,66463.0,0.07531861]
[1729680830890,0.29527,66464.0,66463.0,0.0002]
[1729680831084,0.29527,66464.0,66463.0,0.07531861]
[1729680832093,0.29527,66464.0,66463.0,0.09671908]
[1729680833990,0.29527,66464.0,66463.0,0.09678529]
[1729680836499,0.33446043,66464.0,66463.0,0.0002]
[1729680837094,0.44446043,66464.0,66452.0,0.0497]
[1729680837297,0.44446043,66464.0,66447.0,0.06019174]
[1729680837298,0.075284,66451.0,66450.0,0.075284]
[1729680837511,0.075279,66458.0,66457.0,0.075274]
[1729680837695,0.075273,66461.0,66460.0,0.075269]
[1729680837895,0.11,66466.0,66460.0,0.11]
[1729680838202,0.185269,66465.0,66464.0,0.075268]
[1729680838406,0.03930606,66465.0,66464.0,0.185268]
[1729680838603,0.075259,66474.0,66473.0,0.075257]
[1729680838809,0.075253,66479.0,66478.0,0.075251]
[1729680838993,0.14994691,66497.0,66477.0,0.11]
[1729680839198,0.18525,66482.0,66481.0,0.07525]
[1729680841623,0.07525,66482.0,66481.0,0.07525]
[1729680842600,0.18525,66482.0,66481.0,0.07525]
[1729680844500,0.18525,66482.0,66481.0,0.12026511]
[1729680844705,0.18525,66482.0,66481.0,0.14452959]
[1729680845410,0.18525,66482.0,66481.0,0.09951448]
[1729680845706,0.00096,66511.0,66481.0,0.02426448]
[1729680845914,0.075212,66515.0,66485.0,0.075244]
[1729680845915,0.075245,66486.0,66485.0,0.075244]
[1729680846103,0.075245,66486.0,66485.0,0.185244]
[1729680847111,0.185245,66486.0,66485.0,0.075244]
[1729680849717,0.075234,66496.0,66485.0,0.11]
[1729680849911,0.075243,66490.0,66489.0,0.18524]
[1729680850212,0.185243,66490.0,66489.0,0.07524]
[1729680850511,0.11,66490.0,66483.0,0.11]
[1729680850815,0.075233,66497.0,66485.0,0.075244]
[1729680850816,0.075246,66486.0,66485.0,0.075244]
[1729680851713,0.185246,66486.0,66485.0,0.075244]
[1729680853400,0.07525,66484.0,66483.0,0.075248]
[1729680853602,0.07525,66481.0,66480.0,0.04499213]
[1729680853808,0.075251,66480.0,66479.0,0.10041503]
[1729680854006,0.075254,66478.0,66477.0,0.0466]
[1729680854306,0.185254,66478.0,66477.0,0.0466]
[1729680856621,0.075254,66478.0,66477.0,0.231855]
[1729680856806,0.075249,66484.0,66483.0,0.075247]
[1729680858315,0.075253,66480.0,66479.0,0.075251]
[1729680858616,0.075253,66480.0,66477.0,0.0466]
[1729680858617,0.075254,66478.0,66477.0,0.0466]
[1729680858817,0.185254,66478.0,66477.0,0.0466]
[1729680859716,0.185254,66478.0,66477.0,0.121855]
[1729680860421,0.245254,66478.0,66477.0,0.0466]
[1729680860824,0.075269,66465.0,66464.0,0.075267]
[1729680861212,0.075269,66465.0,66462.0,0.0981]
[1729680861407,0.075269,66465.0,66461.0,0.04855685]
[1729680861408,0.075272,66462.0,66461.0,0.00225685]
[1729680861613,0.075273,66461.0,66460.0,0.04494855]
[1729680863211,0.075281,66454.0,66453.0,0.075282]
[1729680863419,0.245281,66454.0,66453.0,0.075282]
[1729680863614,0.32803786,66454.0,66453.0,0.075282]
[1729680863929,0.37866853,66454.0,66453.0,0.075282]
[1729680864626,0.37866853,66454.0,66453.0,0.077282]
[1729680866621,0.32803786,66454.0,66453.0,0.077282]
[1729680866815,0.37872159,66454.0,66453.0,0.077282]
[1729680867726,0.20008153,66454.0,66453.0,0.077282]
[1729680867922,0.17,66454.0,66453.0,0.077282]
[1729680868322,0.245281,66454.0,66453.0,0.077282]
[1729680869225,0.245281,66454.0,66453.0,0.002]
[1729680871529,0.245281,66454.0,66453.0,0.077282]
[1729680872528,0.245281,66454.0,66453.0,0.002]
[1729680872834,0.245281,66454.0,66453.0,0.04693612]
[1729680873534,0.245281,66454.0,66453.0,0.002]
[1729680873717,0.075273,66461.0,66450.0,0.13519497]
[1729680873718,0.075284,66451.0,66450.0,0.13519497]
[1729680873924,0.075284,66451.0,66450.0,0.075285]
[1729680874239,0.075287,66449.0,66448.0,0.15020226]
[1729680874553,0.075287,66449.0,66448.0,0.24671708]
[1729680874554,0.245287,66449.0,66448.0,0.24671708]
[1729680874723,0.245287,66449.0,66448.0,0.15020226]
[1729680874930,0.075287,66449.0,66448.0,0.15020226]
[1729680875530,0.075287,66449.0,66448.0,0.24673839]
[1729680876631,0.075287,66449.0,66448.0,0.17182413]
[1729680877426,0.075287,66449.0,66448.0,0.24675375]
[1729680877731,0.075283,66452.0,66451.0,0.075284]
[1729680880124,0.075283,66452.0,66451.0,0.15022062]
[1729680882440,0.075283,66452.0,66451.0,0.24668017]
[1729680882829,0.075283,66452.0,66451.0,0.075284]
[1729680890742,0.075283,66452.0,66451.0,0.28732653]
[1729680892637,0.245283,66452.0,66451.0,0.28732653]
[1729680893550,0.245283,66452.0,66451.0,0.21204253]
[1729680896344,0.185283,66452.0,66451.0,0.21225628]
[1729680898546,0.185283,66452.0,66451.0,0.21245251]
[1729680898749,0.185283,66452.0,66451.0,0.18706692]
[1729680898945,0.185283,66452.0,66451.0,0.09673642]
[1729680900245,0.245283,66452.0,66451.0,0.09673642]
[1729680902653,0.696723,66452.0,66450.0,0.07524349]
[1729680902856,0.075284,66451.0,66450.0,0.07524349]
[1729680903356,0.075285,66450.0,66449.0,0.07524349]
[1729680903551,0.245285,66450.0,66449.0,0.07524349]
[1729680903750,0.245285,66450.0,66444.0,0.09029218]
[1729680903751,0.075287,66449.0,66444.0,0.09029218]
[1729680903955,0.245291,66445.0,66444.0,0.09029218]
[1729680904152,0.245291,66445.0,66436.0,0.10487996]
[1729680904153,0.345371,66445.0,66436.0,0.10487996]
[1729680904354,0.075305,66433.0,66432.0,0.075305]
[1729680904578,0.245305,66433.0,66432.0,0.075305]
[1729680904754,0.245305,66433.0,66432.0,0.10051127]
[1729680905251,0.075292,66444.0,66432.0,0.13900816]
[1729680905452,0.075293,66446.0,66445.0,0.075289]
[1729680905654,0.075269,66465.0,66444.0,0.0933]
[1729680905843,0.075282,66455.0,66454.0,0.075278]
[1729680906045,0.075282,66455.0,66452.0,0.17]
[1729680906046,0.075277,66458.0,66457.0,0.075276]
[1729680906247,0.07527,66464.0,66463.0,0.075268]
[1729680906659,0.11624238,66464.0,66463.0,0.075268]
[1729680907543,0.11624238,66464.0,66458.0,0.0933]
[1729680907746,0.245275,66461.0,66460.0,0.075274]
[1729680908045,0.075275,66459.0,66458.0,0.168576]
[1729680908960,0.11666006,66459.0,66458.0,0.168576]
[1729680909146,0.11675069,66459.0,66458.0,0.168576]
[1729680910256,0.075275,66459.0,66458.0,0.168576]
[1729680910657,0.11671084,66459.0,66458.0,0.168576]
[1729680911160,0.075275,66459.0,66458.0,0.168576]
[1729680916966,0.075264,66470.0,66458.0,0.338576]
[1729680917168,0.07527,66466.0,66465.0,0.075268]
[1729680919570,0.07527,66466.0,66462.0,0.075272]
[1729680919571,0.075273,66463.0,66462.0,0.075272]
[1729680919754,0.245273,66463.0,66462.0,0.075272]
[1729680920569,0.33523727,66463.0,66462.0,0.075272]
[1729680922665,0.33523727,66463.0,66458.0,0.0933]
[1729680922666,0.25996427,66463.0,66458.0,0.0933]
[1729680922873,0.075275,66460.0,66459.0,0.075274]
[1729680923372,0.16491518,66460.0,66459.0,0.075274]
[1729680923774,0.21975566,66460.0,66459.0,0.03460363]
[1729680926967,0.16491518,66460.0,66459.0,0.03460363]
[1729680927664,0.16450701,66460.0,66459.0,0.03460363]
[1729680928362,0.075275,66459.0,66458.0,0.0451]
[1729680928564,0.075275,66459.0,66458.0,0.13972086]
[1729680930364,0.075275,66459.0,66458.0,0.09462086]
[1729680930568,0.0469,66459.0,66458.0,0.06005581]
[1729680930863,0.075282,66453.0,66452.0,0.02454704]
[1729680931071,0.245282,66453.0,66452.0,0.09507314]
[1729680933071,0.075282,66453.0,66452.0,0.09507314]
[1729680933382,0.245282,66453.0,66452.0,0.09507314]
[1729680935571,0.075285,66450.0,66449.0,0.02501172]
[1729680935772,0.075285,66450.0,66446.0,0.0468]
[1729680935973,0.075285,66450.0,66449.0,0.075287]
[1729680936980,0.1465478,66469.0,66449.0,0.075287]
[1729680937175,0.1465478,66469.0,66446.0,0.07188954]
[1729680937176,0.075279,66458.0,66457.0,0.245276]
[1729680937372,0.11618504,66458.0,66457.0,0.245276]
[1729680938272,0.075279,66458.0,66457.0,0.245276]
[1729680941580,0.075279,66458.0,66457.0,0.00470771]
[1729680941581,0.17,66458.0,66457.0,0.00470771]
[1729680941786,0.17,66458.0,66455.0,0.046]
[1729680941787,0.075279,66456.0,66455.0,0.046]
[1729680941971,0.116334,66456.0,66455.0,0.046]
[1729680943384,0.116334,66456.0,66455.0,0.02446536]
[1729680943579,0.075282,66453.0,66452.0,0.15049206]
[1729680943781,0.075282,66453.0,66452.0,0.075283]
[1729680944086,0.17,66454.0,66450.0,0.15049406]
[1729680944382,0.075284,66451.0,66450.0,0.075285]
[1729680944683,0.075284,66451.0,66450.0,0.24560022]
[1729680944879,0.075284,66451.0,66450.0,0.075285]
[1729680945181,0.075284,66451.0,66450.0,0.245806]
[1729680945383,0.075284,66451.0,66450.0,0.075285]
[1729680945571,0.075284,66451.0,66450.0,0.15048337]
[1729680945776,0.075284,66451.0,66450.0,0.075285]
[1729680946184,0.075284,66451.0,66450.0,0.24579223]
[1729680946380,0.075284,66451.0,66450.0,0.15048337]
[1729680946586,0.075284,66451.0,66450.0,0.075285]
[1729680949380,0.075284,66451.0,66450.0,0.15048337]
[1729680949680,0.075284,66451.0,66450.0,0.075285]
[1729680949890,0.075284,66451.0,66450.0,0.15048337]
[1729680950588,0.075284,66451.0,66450.0,0.075285]
[1729680955192,0.075284,66451.0,66450.0,0.0799932]
[1729680955690,0.075284,66451.0,66450.0,0.075285]
[1729680956896,0.075284,66451.0,66450.0,0.0799932]
[1729680957102,0.075284,66451.0,66450.0,0.075285]
[1729680958699,0.075284,66451.0,66450.0,0.28423386]
[1729680959100,0.03008258,66451.0,66450.0,0.52146813]
[1729680959294,0.075279,66456.0,66450.0,0.4162556]
[1729680959599,0.075283,66452.0,66451.0,0.28423286]
[1729680961804,0.075283,66452.0,66451.0,0.38946082]
[1729680962105,0.075283,66452.0,66451.0,0.41573247]
[1729680963100,0.075283,66452.0,66451.0,0.28423286]
[1729680963504,0.075283,66452.0,66451.0,0.17060905]
[1729680964300,0.075262,66471.0,66466.0,0.075267]
[1729680964487,0.075262,66471.0,66470.0,0.20028182]
[1729680964692,0.075262,66471.0,66470.0,0.20532505]
[1729680964886,0.075262,66471.0,66470.0,0.09532505]
[1729680965093,0.075262,66471.0,66470.0,0.20774585]
[1729680965300,0.075262,66471.0,66470.0,0.18560225]
[1729680965499,0.075262,66471.0,66470.0,0.09532505]
[1729680966693,0.075262,66471.0,66470.0,0.17058805]
[1729680967298,0.075262,66471.0,66470.0,0.34058805]
[1729680967489,0.075262,66471.0,66470.0,0.17058805]
[1729680967692,0.075262,66471.0,66470.0,0.1200133]
[1729680968303,0.075262,66471.0,66470.0,0.1952763]
[1729680968494,0.075262,66471.0,66470.0,0.19430961]
[1729680970308,0.075262,66471.0,66470.0,0.28458681]
[1729680970605,0.075262,66471.0,66470.0,0.19430961]
[1729680972700,0.075262,66471.0,66470.0,0.19412609]
[1729680973001,0.075266,66468.0,66467.0,0.075266]
[1729680973205,0.245266,66468.0,66467.0,0.075266]
[1729680973598,0.33479291,66468.0,66467.0,0.075266]
[1729680974208,0.075266,66467.0,66466.0,0.02469131]
[1729680974511,0.075266,66467.0,66466.0,0.075267]
[1729680975708,0.16477114,66467.0,66466.0,0.075267]
[1729680977002,0.08950514,66467.0,66466.0,0.245267]
[1729680977399,0.16477114,66467.0,66466.0,0.075267]
[1729680978014,0.28517816,66467.0,66466.0,0.075267]
[1729680978318,0.21993494,66467.0,66466.0,0.03439134]
[1729680978510,0.21993494,66467.0,66466.0,0.20439134]
[1729680979800,0.11668349,66467.0,66466.0,0.20439134]
[1729680980005,0.11668349,66467.0,66466.0,0.03439134]
[1729680980207,0.075266,66467.0,66466.0,0.03439134]
[1729680984614,0.075266,66467.0,66466.0,0.21898722]
[1729680984807,0.075266,66467.0,66466.0,0.09007837]
[1729680985718,0.075266,66467.0,66466.0,0.16534537]
[1729680986223,0.075266,66467.0,66466.0,0.09007837]
[1729680988412,0.185266,66467.0,66466.0,0.09007837]
[1729680989717,0.075267,66466.0,66465.0,0.11]
[1729680989917,0.075267,66466.0,66462.0,0.204972]
[1729680989918,0.075271,66463.0,66462.0,0.314972]
[1729680995720,0.075264,66470.0,66469.0,0.075261]
[1729680995721,0.075265,66470.0,66469.0,0.075261]
[1729680995927,0.075265,66470.0,66469.0,0.185261]
[1729680996130,0.075271,66464.0,66463.0,0.075267]
[1729680996431,0.185271,66464.0,66463.0,0.17016602]
[1729680998520,0.075272,66462.0,66461.0,0.02457085]
[1729680998724,0.075276,66458.0,66457.0,0.075277]
[1729680998925,0.075276,66458.0,66457.0,0.10023671]
[1729680999128,0.075276,66458.0,66457.0,0.27079332]
[1729680999927,0.075276,66458.0,66457.0,0.38080365]
[1729681000134,0.075274,66461.0,66460.0,0.07527]
[1729681000327,0.075274,66461.0,66460.0,0.35583052]
[1729681000516,0.075274,66461.0,66460.0,0.28065004]
[1729681002119,0.075264,66469.0,66460.0,0.20538004]
[1729681002319,0.075264,66469.0,66459.0,0.0424]
[1729681002320,0.075265,66468.0,66467.0,0.17015066]
[1729681002526,0.075265,66468.0,66467.0,0.24541666]
[1729681002731,0.075265,66468.0,66467.0,0.3554043]
[1729681002929,0.075265,66468.0,66467.0,0.28021597]
[1729681004338,0.075265,66468.0,66467.0,0.185266]
[1729681004533,0.11650265,66468.0,66467.0,0.185266]
[1729681004734,0.16431542,66468.0,66467.0,0.185266]
[1729681005835,0.16431542,66468.0,66467.0,0.20964371]
[1729681011325,0.075265,66468.0,66467.0,0.30450373]
[1729681013143,0.075265,66468.0,66467.0,0.19450373]
[1729681013440,0.075265,66468.0,66467.0,0.28472326]
[1729681014944,0.075265,66468.0,66467.0,0.28477493]
[1729681015644,0.075265,66468.0,66467.0,0.1945554]
[1729681017154,0.075265,66468.0,66467.0,0.28478479]
[1729681018156,0.075265,66468.0,66467.0,0.1945554]
[1729681019346,0.075265,66468.0,66467.0,0.09964371]
[1729681026152,0.075265,66468.0,66467.0,0.02437771]